fUSD/lending_fUSD_20240521
["ID","MTS","AMOUNT","RATE_DAILY","PERIOD"]
[327669960,1716299448382,-150.67,0.0003549,2]
[327669961,1716299448393,-150.67,0.0003549,2]
[327669962,1716299448402,-150.67,0.0003549,2]
[327669963,1716299448413,-150.67,0.0003549,2]
[327669964,1716299448422,-178.92212603,0.00035498,4]
[327669965,1716299448434,-177.0662568,0.00035499,4]
[327669966,1716299448443,-2000.0,0.00035499,2]
[327669967,1716299448454,-32939.61593032,0.00035499,7]
[327669968,1716299448464,-150.0,0.00035499,2]
[327669969,1716299448474,-286.373318,0.00035499,7]
[327669970,1716299448484,-1114.11938435,0.000355,5]
[327669971,1716299448495,-162.35,0.000355,10]
[327669972,1716299448504,-53566270.49417631,0.000355,5]
[327669973,1716299448519,-500.0,0.000355,5]
[327669974,1716299448532,-500.0,0.000355,5]
[327669975,1716299448544,-5713.5,0.000355,5]
[327669976,1716299448599,-1423691.0913729,0.000355,5]
[327669977,1716299448616,-84788.10372572,0.000355,5]
[327669978,1716299448628,-4232.77085656,0.000355,5]
[327669979,1716299448639,-2630.31424143,0.000355,5]
[327669980,1716299448652,-2287.51985743,0.000355,5]
[327669981,1716299448819,-500.0,0.000355,5]
[327669982,1716299449804,-151.0,0.00034333,7]
[327669983,1716299449817,-31739.01625757,0.000355,5]
[327669984,1716299449833,-38150.99999944,0.000355,5]
[327669985,1716299449847,-4253.38900033,0.000355,5]
[327669986,1716299449906,-155.0,0.00034,5]
[327669987,1716299449917,-4021.69491516,0.000355,5]
[327669988,1716299449930,-2994.40934235,0.000355,5]
[327669989,1716299450063,-1.9e-07,0.000355,5]
[327669990,1716299450117,-151.0,0.00034689,7]
[327669991,1716299450127,-1737.69,0.000355,5]
[327669992,1716299450138,-2712.08553787,0.000355,5]
[327669993,1716299450149,-2474.72043653,0.000355,5]
[327669994,1716299450160,-1742.2266183,0.000355,5]
[327669995,1716299450172,-768.5435167,0.000355,5]
[327669996,1716299450184,-381.66,0.000355,5]
[327669997,1716299450197,-361.81700272,0.000355,5]
[327669998,1716299450209,-302.524,0.000355,5]
[327669999,1716299450221,-679.54177101,0.000355,5]
[327670000,1716299459376,534.72584194,0.00017259,2]
[327670001,1716299497883,541.03648628,0.00017259,2]
[327670002,1716299527517,154.9,0.00013973,2]
[327670010,1716299849667,180.48395258,0.00013973,2]
[327670016,1716299940365,2000.0,0.0002837,120]
[327670019,1716300011244,156.6,0.00013973,2]
[327670031,1716300345177,-423.50395095,0.00016739,2]
[327670032,1716300345198,-2804.76578875,0.0001674,2]
[327670033,1716300345217,-339.17922691,0.00016742,2]
[327670034,1716300345236,-14603.62531006,0.00016903,2]
[327670035,1716300345258,-263.78,0.00016903,3]
[327670036,1716300345278,-306.18884519,0.00016911,2]
[327670037,1716300345300,-150.0,0.00016912,2]
[327670038,1716300345320,-7885.05430272,0.00016913,2]
[327670042,1716300438119,-423.50395095,0.0001691,2]
[327670043,1716300438140,-223.65370089,0.00016911,2]
[327670044,1716300438160,-150.0,0.00016912,2]
[327670045,1716300438199,-4388.19951069,0.00016913,2]
[327670046,1716300444107,-860.95241266,0.00016912,2]
[327670047,1716300546238,-331.65549182,0.0001522,2]
[327670048,1716300546258,-64.45040774,0.00016912,2]
[327670049,1716300546279,-52107.10210044,0.00016913,2]
[327670050,1716300547157,-88939.19920925,0.00016913,2]
[327670051,1716300547180,-2604.3520118,0.00016914,2]
[327670052,1716300547202,-219.82,0.0001725,3]
[327670053,1716300547224,-4065.30503528,0.00017259,2]
[327670054,1716300547245,-3197.82,0.00017534,2]
[327670055,1716300547266,-397.54,0.00017534,2]
[327670056,1716300547292,-499.99,0.00017534,2]
[327670057,1716300547314,-439.64,0.0001862,3]
[327670058,1716300547337,-41134.19477507,0.00019,2]
[327670059,1716300547358,-3880.70724069,0.000192,2]
[327670060,1716300547377,-553.78915607,0.0002,2]
[327670061,1716300547399,-1367.3112803,0.00021693,2]
[327670062,1716300560259,-2042.5587197,0.00021693,2]
[327670063,1716300560279,-1103.75,0.00021945,2]
[327670064,1716300560301,-198.44,0.00023129,2]
[327670065,1716300560321,-250.0,0.00024658,2]
[327670066,1716300560343,-732.3,0.00024817,2]
[327670067,1716300560364,-22673.73589345,0.00024898,2]
[327670068,1716300560384,-12610.87703108,0.00024898,2]
[327670074,1716300632236,-1000.0,0.00021692,2]
[327670078,1716300632246,-150.0,0.00025169,2]
[327670081,1716300632256,-500.0,0.00025626,2]
[327670084,1716300632265,-1003.94,0.00025786,2]
[327670087,1716300632275,-157.55,0.00025818,2]
[327670089,1716300632284,-234.32,0.00025829,2]
[327670091,1716300632295,-150.27,0.0002589,2]
[327670093,1716300632304,-235.4,0.00026076,2]
[327670095,1716300632314,-157.55,0.00026491,2]
[327670097,1716300632324,-264.52182797,0.0002671,2]
[327670099,1716300632336,-285.56817203,0.0002671,2]
[327670100,1716300632346,-2192.8337536,0.00026859,2]
[327670101,1716300632589,-607.31474073,0.00026859,2]
[327670104,1716300632601,-2000.0,0.00026859,2]
[327670106,1716300632616,-5199.85150567,0.00026859,2]
[327670108,1716300632625,-155.69626605,0.0002688,2]
[327670109,1716300632634,-151.93992954,0.00026946,2]
[327670110,1716300632643,-166.66666666,0.00027044,2]
[327670111,1716300632653,-659.24864766,0.0002708,2]
[327670112,1716300632669,-73.05135234,0.0002708,2]
[327670113,1716300632678,-155.9581075,0.00027146,2]
[327670114,1716300632687,-157.55,0.00027163,2]
[327670115,1716300632697,-335.67285073,0.00027164,3]
[327670116,1716300632713,-323.79714927,0.00027164,3]
[327670117,1716300632723,-313.13915073,0.00027174,2]
[327670118,1716300632734,-2084.58601039,0.00027174,2]
[327670119,1716300632747,-21063.34943641,0.00027174,2]
[327670120,1716300632760,-438.92540247,0.00027174,2]
[327670121,1716300632770,-1365.14,0.00027397,2]
[327670122,1716300632782,-191.88,0.00027416,2]
[327670123,1716300632793,-689.66,0.00027469,2]
[327670124,1716300632803,-200.0,0.00027486,2]
[327670125,1716300632814,-195.48762454,0.00027565,2]
[327670126,1716300632825,-1249.46,0.00027628,2]
[327670127,1716300632835,-1292.09,0.00027681,2]
[327670128,1716300632844,-1096.39,0.00028203,2]
[327670129,1716300632858,-1512.09,0.00028203,2]
[327670130,1716300632867,-151.93992954,0.00028312,2]
[327670131,1716300632877,-180.0,0.00028339,2]
[327670132,1716300632886,-156.60288856,0.00028504,2]
[327670133,1716300632895,-250.0,0.00028687,2]
[327670134,1716300632906,-155.69626605,0.00028897,2]
[327670136,1716300632916,-250.0,0.00029313,2]
[327670138,1716300632925,-732.3,0.00029344,2]
[327670139,1716300632935,-225.59952986,0.000295,3]
[327670141,1716300632944,-449.91,0.00029686,2]
[327670143,1716300632954,-155.0,0.0003,3]
[327670145,1716300632964,-166.53024665,0.0003,2]
[327670147,1716300632973,-400.0,0.0003,2]
[327670149,1716300632982,-550.09,0.00030049,2]
[327670151,1716300632992,-250.0,0.000301,15]
[327670153,1716300633002,-156.60288856,0.00030228,2]
[327670154,1716300633011,-156.72923834,0.00030303,7]
[327670156,1716300633021,-1178.91785178,0.00030421,2]
[327670158,1716300633034,-113.17214822,0.00030421,2]
[327670159,1716300633044,-155.69626607,0.00031089,7]
[327670160,1716300633054,-223.97306884,0.00031286,3]
[327670161,1716300633066,-268.02693116,0.00031286,3]
[327670162,1716300633076,-732.3,0.00031608,2]
[327670163,1716300633086,-175.04390384,0.00031746,7]
[327670164,1716300633096,-156.60288856,0.00031952,2]
[327670165,1716300633106,-160.61,0.0003212,10]
[327670166,1716300633116,-500.0,0.00032197,2]
[327670167,1716300633126,-434.865098,0.00032197,2]
[327670168,1716300633135,-1510.39153847,0.00032198,2]
[327670169,1716300633147,-649.60846153,0.00032198,2]
[327670170,1716300633156,-1225.0,0.00032198,2]
[327670171,1716300633166,-1643.0,0.00032198,2]
[327670172,1716300633176,-544.0,0.00032198,2]
[327670173,1716300633186,-1263.0,0.00032198,2]
[327670174,1716300633196,-444.0,0.00032198,2]
[327670175,1716300633206,-613.0,0.00032198,2]
[327670176,1716300633215,-439.0,0.00032198,2]
[327670177,1716300633225,-809.0,0.00032198,2]
[327670178,1716300633234,-1648.0,0.00032198,2]
[327670179,1716300633244,-218.15105014,0.00032198,2]
[327670180,1716300633256,-2176.84894986,0.00032198,2]
[327670181,1716300633266,-2295.0,0.00032198,2]
[327670182,1716300633276,-3161.0,0.00032198,2]
[327670183,1716300633286,-1237.988,0.00032198,2]
[327670184,1716300633296,-217.0,0.00032198,2]
[327670185,1716300633306,-168.43,0.00032251,2]
[327670186,1716300633316,-182.57,0.00032266,120]
[327670187,1716300633326,-151.93992954,0.00032354,7]
[327670188,1716300633335,-266.0,0.00032627,3]
[327670189,1716300633345,-10000.0,0.00032661,2]
[327670191,1716300633357,-170.62406013,0.00032806,7]
[327670193,1716300633367,-151.93992954,0.00032953,7]
[327670195,1716300633376,-2293.15702369,0.00033067,4]
[327670196,1716300633385,-1292.09,0.00033161,2]
[327670197,1716300633396,-5132.0,0.0003329,2]
[327670198,1716300633405,-5757.0,0.0003329,2]
[327670199,1716300633415,-346.246,0.0003329,2]
[327670200,1716300633425,-1465.0,0.0003329,2]
[327670201,1716300633435,-37885.0,0.0003329,2]
[327670202,1716300633445,-1061.0,0.0003329,2]
[327670203,1716300633455,-550.09,0.00033388,2]
[327670204,1716300633464,-449.91,0.00033397,2]
[327670205,1716300633474,-156.96,0.000335,2]
[327670206,1716300633484,-156.96,0.000335,2]
[327670207,1716300633493,-156.60288856,0.00033676,2]
[327670208,1716300633502,-158.9218,0.000338,2]
[327670209,1716300633512,-732.3,0.00033872,2]
[327670210,1716300633522,-1000.0,0.000339,2]
[327670211,1716300633535,-300.0,0.00033999,2]
[327670212,1716300633544,-300.0,0.00034136,2]
[327670213,1716300633555,-500.0,0.000342,15]
[327670214,1716300633566,-500.0,0.000342,2]
[327670215,1716300633576,-500.0,0.000342,2]
[327670216,1716300633585,-500.0,0.000342,2]
[327670217,1716300633596,-500.0,0.000342,2]
[327670218,1716300633607,-500.0,0.000342,2]
[327670219,1716300633616,-500.0,0.000342,2]
[327670220,1716300633627,-500.0,0.000342,2]
[327670221,1716300633636,-500.0,0.000342,2]
[327670222,1716300633647,-500.0,0.000342,2]
[327670223,1716300633657,-300.0,0.00034273,2]
[327670224,1716300633667,-707.0,0.000343,2]
[327670225,1716300633677,-1000.0,0.000343,2]
[327670226,1716300633687,-446.0,0.000343,2]
[327670227,1716300633698,-974.0,0.00034347,2]
[327670228,1716300633710,-300.0,0.0003441,2]
[327670229,1716300633720,-1000.0,0.00034472,30]
[327670230,1716300633730,-500.0,0.00034472,10]
[327670231,1716300633962,-200.0,0.00034472,10]
[327670232,1716300633972,-154.9,0.00034475,2]
[327670233,1716300633981,-500.0,0.000345,2]
[327670234,1716300633991,-500.0,0.000345,2]
[327670235,1716300634001,-500.0,0.000345,2]
[327670236,1716300634011,-500.0,0.000345,2]
[327670237,1716300634022,-639.0,0.000345,2]
[327670238,1716300634031,-4169.0,0.00034502,120]
[327670239,1716300634040,-283.69207422,0.00034502,60]
[327670240,1716300634050,-150.0,0.00034502,2]
[327670241,1716300634060,-2072.2,0.00034502,40]
[327670242,1716300634069,-152.62975402,0.00034509,7]
[327670243,1716300634079,-300.0,0.00034547,2]
[327670244,1716300634088,-300.0,0.00034684,2]
[327670245,1716300634098,-400.0,0.000347,12]
[327670246,1716300634108,-900.0,0.000348,12]
[327670247,1716300634116,-300.0,0.00034821,2]
[327670248,1716300634126,-155.1638986,0.000349,2]
[327670249,1716300634135,-1400.0,0.000349,12]
[327670250,1716300634144,-325.61182121,0.000349,2]
[327670251,1716300634154,-16325.16929544,0.000349,7]
[327670252,1716300634163,-7500.0,0.000349,2]
[327670253,1716300634172,-151.93992954,0.00034932,7]
[327670254,1716300634182,-300.0,0.00034958,2]
[327670255,1716300634191,-205.41424698,0.0003499,2]
[327670256,1716300634201,-150.68,0.0003499,2]
[327670257,1716300634211,-366.75776226,0.00034998,4]
[327670258,1716300634221,-660.56590097,0.00034999,2]
[327670259,1716300634230,-8404.11,0.00034999,4]
[327670260,1716300634240,-4935.34694781,0.00034999,4]
[327670261,1716300634250,-9992.74325279,0.00035,4]
[327670262,1716300634259,-3000.04,0.00035,2]
[327670263,1716300634268,-3000.0,0.00035,2]
[327670264,1716300634278,-3000.0,0.00035,2]
[327670265,1716300634288,-3000.0,0.00035,2]
[327670266,1716300634298,-3000.0,0.00035,2]
[327670267,1716300634307,-858.89,0.00035,2]
[327670268,1716300634316,-19355.092856,0.00035,4]
[327670269,1716300634326,-1000.0,0.00035,2]
[327670270,1716300634336,-1000.0,0.00035,2]
[327670271,1716300634346,-197.0,0.00035,2]
[327670272,1716300634357,-8225.67367899,0.00035,2]
[327670273,1716300634370,-960.904442,0.00035,2]
[327670274,1716300634382,-504.69421276,0.00035,2]
[327670275,1716300634398,-977.03499773,0.00035,2]
[327670276,1716300634409,-384.20256361,0.00035,2]
[327670277,1716300634420,-991.38567962,0.00035,2]
[327670278,1716300634431,-648.56859254,0.00035,2]
[327670279,1716300634443,-9093.21,0.00035,2]
[327670280,1716300634454,-4147.36848739,0.00035,2]
[327670281,1716300634466,-662.43919484,0.00035,2]
[327670282,1716300634477,-421.24443056,0.00035,2]
[327670283,1716300634489,-579.0723931,0.00035,2]
[327670284,1716300634500,-441.23700119,0.00035,2]
[327670285,1716300634564,-173.13296409,0.00035,2]
[327670286,1716300634576,-705.55,0.00035,2]
[327670287,1716300634588,-322.54675922,0.00035,2]
[327670289,1716300638315,-162.92,0.00034375,120]
[327670292,1716300638325,-682.6194707,0.00035,2]
[327670296,1716300638336,-500.6964493,0.00035,2]
[327670305,1716300638651,-6460.5040335,0.00035,17]
[327670306,1716300638663,-2879.32427551,0.00035,17]
[327670307,1716300638676,-350.87616179,0.00035,17]
[327670308,1716300638687,-1205.69464424,0.00035,17]
[327670309,1716300638701,-994.19932461,0.00035,17]
[327670310,1716300638713,-896.63802276,0.00035,17]
[327670311,1716300638725,-358.9537836,0.00035,17]
[327670312,1716300638736,-519.7933878,0.00035,17]
[327670314,1716300639141,-3531.1,0.00035,17]
[327670316,1716300639155,-66604.97388811,0.00035,17]
[327670318,1716300639165,-27449.6091937,0.00035,2]
[327670320,1716300639177,-706.11,0.00035,2]
[327670322,1716300639188,-56464.379148,0.00035,2]
[327670343,1716300640866,-95.25199501,0.00035,2]
[327670344,1716300641049,-141435.81050732,0.00035,2]
[327670345,1716300641060,-1026.04080833,0.00035,2]
[327670346,1716300641394,-3766.93002242,0.00035,2]
[327670374,1716300643403,-277.6671598,0.00035,2]
[327670378,1716300643415,-475.25184955,0.00035,2]
[327670396,1716300643756,-1732.07741272,0.00035,2]
[327670397,1716300643882,-3642.79917391,0.00035,2]
[327670398,1716300643894,-5011.01219006,0.00035,2]
[327670399,1716300643907,-1790.95909216,0.00035,2]
[327670400,1716300643919,-2971.4261541,0.00035,2]
[327670401,1716300643930,-309.2946,0.00035,2]
[327670402,1716300643942,-10327.13081612,0.00035,2]
[327670403,1716300643954,-3699.02030951,0.00035,2]
[327670404,1716300643965,-1904.03536876,0.00035,2]
[327670405,1716300643977,-2108.45477756,0.00035,2]
[327670406,1716300643988,-723.49542968,0.00035,2]
[327670407,1716300644333,-513.51812588,0.00035,2]
[327670408,1716300644345,-20508.51,0.00035,2]
[327670409,1716300644356,-1598.03354687,0.00035,2]
[327670417,1716300644566,-2975.12193612,0.00035,2]
[327670419,1716300644578,-250283.47906478,0.00035,2]
[327670421,1716300644587,-1334.65,0.00035,6]
[327670423,1716300644597,-177794.0,0.00035,2]
[327670425,1716300644606,-300.0,0.00035095,2]
[327670427,1716300644616,-155.53,0.00035116,2]
[327670429,1716300644625,-369.73475,0.0003514,2]
[327670431,1716300644634,-216.7870819,0.00035144,3]
[327670433,1716300644643,-1444.69704393,0.0003515,2]
[327670435,1716300644652,-2160.0,0.00035198,2]
[327670437,1716300644661,-1225.0,0.00035198,2]
[327670439,1716300644670,-1643.0,0.00035198,2]
[327670441,1716300644679,-544.0,0.00035198,2]
[327670443,1716300644689,-1263.0,0.00035198,2]
[327670445,1716300644700,-613.0,0.00035198,2]
[327670447,1716300644714,-809.0,0.00035198,2]
[327670449,1716300644724,-2395.0,0.00035198,2]
[327670451,1716300644733,-2295.0,0.00035198,2]
[327670453,1716300644743,-2523.464,0.00035198,2]
[327670455,1716300644753,-1137.0,0.00035198,2]
[327670456,1716300644762,-215.0,0.00035198,2]
[327670458,1716300644771,-500.0,0.00035214,10]
[327670460,1716300644781,-300.0,0.00035232,2]
[327670463,1716300644794,-153.39,0.00035301,10]
[327670464,1716300644804,-152.62975402,0.00035342,7]
[327670466,1716300644815,-16325.16929536,0.00035344,8]
[327670469,1716300644824,-416.9821242,0.00035369,2]
[327670470,1716300644834,-5800.0,0.00035392,2]
[327670472,1716300644844,-50699.65451351,0.00035399,2]
[327670475,1716300644858,-34519.51178649,0.00035399,2]
[327670476,1716300644868,-1373.1544,0.00035399,2]
[327670477,1716300644877,-160.0,0.000354,9]
[327670478,1716300644887,-2877.20137744,0.000354,2]
[327670490,1716300646506,-344.83,0.0003455,2]
[327670491,1716300646516,-80.0681,0.00034999,4]
[327670492,1716300646839,-321.56825341,0.00032661,2]
[327670494,1716300646849,-1091.17424659,0.00034999,4]
[327670496,1716300646860,-706.194066,0.00034999,4]
[327670513,1716301068229,168.67,0.00029915,120]
[327670514,1716301076597,2000.0,0.00029401,120]
[327670519,1716301619692,182.57,0.00029433,120]
[327670520,1716301633554,-818.37489611,0.00017212,2]
[327670521,1716301633575,-155.0,0.00017213,2]
[327670522,1716301633595,-31.50543827,0.00017214,2]
[327670525,1716301762108,-4076.51920099,0.00017212,2]
[327670526,1716301762131,-13537.37079901,0.00017213,2]
[327670527,1716301774131,-27266.22232604,0.00017213,2]
[327670531,1716301807995,157.83,0.00013973,2]
[327670552,1716301833131,-195.05358506,0.00017212,2]
[327670553,1716301833145,-2512.02227982,0.00017213,2]
[327670554,1716301833155,-829.91810974,0.00017213,2]
[327670555,1716301833166,-150.0,0.00017213,2]
[327670556,1716301833176,-12592.9554049,0.00017214,2]
[327670557,1716301833186,-691.0,0.00017215,2]
[327670558,1716301833196,-207.45919939,0.00017259,2]
[327670559,1716301833206,-192.0,0.00018934,2]
[327670560,1716301833216,-1283.98392734,0.00019441,2]
[327670561,1716301833227,-180.55,0.00025786,2]
[327670562,1716301833238,-180.55,0.00025915,2]
[327670563,1716301833249,-162.2691489,0.00026789,2]
[327670564,1716301833259,-160.9498606,0.00026841,2]
[327670565,1716301833270,-855.02,0.00027502,2]
[327670566,1716301833280,-160.9498606,0.00028398,2]
[327670567,1716301833291,-154.94719705,0.00028566,2]
[327670568,1716301833304,-500.0,0.00028805,2]
[327670569,1716301833314,-200.0,0.00028942,2]
[327670570,1716301833324,-160.9498606,0.00029161,2]
[327670571,1716301833335,-4102.39,0.00029215,2]
[327670572,1716301833345,-250.0,0.00029327,2]
[327670573,1716301833357,-470.4,0.00029382,2]
[327670574,1716301833368,-250.0,0.00029407,2]
[327670575,1716301833377,-2551.15,0.00029419,2]
[327670576,1716301833387,-8145.93,0.00029455,2]
[327670577,1716301833397,-177.39,0.00029528,2]
[327670578,1716301833408,-164.47,0.00029551,2]
[327670579,1716301833419,-23900.0,0.00029618,2]
[327670580,1716301833429,-158.69,0.00029666,2]
[327670581,1716301833440,-4067.86,0.00029686,2]
[327670582,1716301833450,-500.0,0.00029686,2]
[327670583,1716301833460,-160.9498606,0.00029712,2]
[327670584,1716301833471,-855.02,0.00029766,2]
[327670585,1716301833481,-703.94,0.00029778,2]
[327670586,1716301833491,-200.0,0.00029805,2]
[327670587,1716301833500,-158.69,0.0002982,2]
[327670588,1716301833511,-200.0,0.00029886,2]
[327670589,1716301833522,-158.69,0.00029975,2]
[327670590,1716301833829,-250.0,0.000301,15]
[327670591,1716301833860,-158.69,0.00030129,2]
[327670592,1716301833870,-160.9498606,0.00030277,7]
[327670593,1716301833880,-158.69,0.00030284,2]
[327670594,1716301833889,-158.69,0.00030439,2]
[327670595,1716301833899,-158.69,0.00030593,2]
[327670596,1716301833909,-158.69,0.00030748,2]
[327670597,1716301833918,-154.95007226,0.00030826,7]
[327670598,1716301833927,-158.69,0.00030902,2]
[327670599,1716301833937,-158.69,0.00031057,2]
[327670600,1716301833947,-158.69,0.00031211,2]
[327670601,1716301833956,-4102.39,0.00031954,2]
[327670602,1716301833965,-1405.76,0.00031973,14]
[327670603,1716301833975,-170.38297669,0.00031989,7]
[327670604,1716301833984,-153.93988001,0.00032005,7]
[327670605,1716301833993,-855.02,0.0003203,2]
[327670606,1716301834003,-10360.5546,0.0003203,2]
[327670607,1716301834012,-154.74831959,0.00032164,7]
[327670608,1716301834022,-1000.0,0.00032298,2]
[327670609,1716301834032,-800.0,0.00032438,2]
[327670610,1716301834042,-2870.96,0.00032594,2]
[327670611,1716301834056,-250.0,0.00032594,2]
[327670612,1716301834065,-175.04390385,0.00032606,7]
[327670613,1716301834074,-162.2691489,0.00032799,7]
[327670614,1716301834087,-366.0,0.00032876,10]
[327670615,1716301834096,-160.9498606,0.00032943,7]
[327670616,1716301834106,-534.1495,0.000333,2]
[327670617,1716301834116,-160.9498606,0.00033308,7]
[327670618,1716301834127,-21293.97822376,0.00033362,2]
[327670619,1716301834137,-300.88,0.0003339,3]
[327670620,1716301834146,-150.44,0.0003339,3]
[327670621,1716301834156,-4236.8193,0.000334,2]
[327670622,1716301834166,-43539.2361,0.000334,2]
[327670623,1716301834176,-26973.2439,0.000334,7]
[327670624,1716301834186,-284.6056483,0.000334,2]
[327670625,1716301834196,-281.9491,0.000334,2]
[327670626,1716301834206,-153.87433227,0.00033462,7]
[327670627,1716301834216,-204.6,0.0003349,2]
[327670628,1716301834225,-156.01045358,0.00033498,4]
[327670629,1716301834235,-427.45226865,0.00033498,2]
[327670630,1716301834245,-350.56157734,0.00033499,4]
[327670631,1716301834255,-2717.67946733,0.00033499,4]
[327670632,1716301834265,-6132.66,0.000335,2]
[327670633,1716301834275,-6132.66,0.000335,2]
[327670634,1716301834285,-6132.66,0.000335,2]
[327670635,1716301834295,-6132.66,0.000335,2]
[327670636,1716301834305,-6132.66,0.000335,2]
[327670637,1716301834314,-6132.66,0.000335,2]
[327670638,1716301834324,-6132.66,0.000335,2]
[327670639,1716301834333,-6132.66,0.000335,2]
[327670640,1716301834343,-6132.66,0.000335,2]
[327670641,1716301834352,-6132.66,0.000335,2]
[327670642,1716301834362,-6132.66,0.000335,2]
[327670643,1716301834372,-6132.66,0.000335,2]
[327670644,1716301834382,-6132.66,0.000335,2]
[327670645,1716301834392,-6132.66,0.000335,2]
[327670646,1716301834402,-6132.66,0.000335,2]
[327670647,1716301834411,-6132.66,0.000335,2]
[327670648,1716301834421,-6132.66,0.000335,2]
[327670649,1716301834431,-6132.66,0.000335,2]
[327670650,1716301834440,-6132.66,0.000335,2]
[327670651,1716301834450,-6132.66,0.000335,2]
[327670652,1716301834460,-157.0,0.000335,2]
[327670653,1716301834470,-284.60564825,0.00033686,2]
[327670654,1716301834480,-162.26914891,0.00033711,7]
[327670655,1716301834491,-313.9335661,0.00033722,7]
[327670656,1716301834518,-150.0,0.000339,8]
[327670657,1716301834553,-175.04390385,0.00033938,7]
[327670658,1716301834599,-284.60564825,0.00033971,2]
[327670659,1716301834635,-21293.97822375,0.00034076,2]
[327670660,1716301834668,-500.0,0.000342,15]
[327670661,1716301834704,-2011.0,0.00034247,30]
[327670662,1716301834728,-284.60564825,0.00034257,2]
[327670663,1716301834738,-855.02,0.00034294,2]
[327670664,1716301834748,-793.0,0.000343,5]
[327670665,1716301834758,-605.226,0.0003434,2]
[327670666,1716301834768,-470.541,0.0003434,2]
[327670667,1716301834778,-617.534,0.0003434,2]
[327670668,1716301834788,-215.0,0.0003434,2]
[327670669,1716301834800,-243.885,0.0003434,2]
[327670670,1716301834810,-1061.0,0.0003434,2]
[327670671,1716301834819,-967.424,0.0003434,2]
[327670672,1716301834828,-289.0,0.0003434,2]
[327670673,1716301834838,-370.406,0.0003434,2]
[327670674,1716301834847,-5757.0,0.0003434,2]
[327670676,1716301834857,-37885.0,0.0003434,2]
[327670678,1716301834867,-347.954734,0.000344,2]
[327670680,1716301834878,-2173.0,0.000344,5]
[327670682,1716301834888,-150.0,0.000344,8]
[327670684,1716301834898,-300.0,0.00034414,2]
[327670686,1716301834908,-284.60564825,0.00034543,2]
[327670688,1716301834917,-212.73685869,0.00034556,7]
[327670690,1716301834927,-4102.39,0.00034694,2]
[327670692,1716301834937,-325.61182121,0.00034728,2]
[327670694,1716301834947,-601.76,0.0003476,3]
[327670696,1716301834956,-300.88,0.0003476,3]
[327670698,1716301834966,-15840.93902129,0.0003479,2]
[327670707,1716301835045,-0.18958446,0.0003479,2]
[327670710,1716301835292,-5452.849618,0.0003479,2]
[327670711,1716301835303,-284.60564825,0.00034829,2]
[327670712,1716301835313,-9754.63492291,0.000349,5]
[327670713,1716301835322,-600.0,0.000349,12]
[327670714,1716301835332,-150.0,0.000349,8]
[327670716,1716301835343,-157.69210687,0.00034998,4]
[327670718,1716301835353,-340.92727371,0.00034998,4]
[327670720,1716301835363,-1116.29042526,0.00034999,14]
[327670722,1716301835375,-12507.34117609,0.00034999,14]
[327670724,1716301835388,-250.48725582,0.00034999,14]
[327670727,1716301835400,-553.94826407,0.00034999,14]
[327670739,1716301835673,-685.89,0.0003219,2]
[327670740,1716301835685,-4222.266144,0.0003219,2]
[327670741,1716301838717,-223.843856,0.0003219,2]
[327670746,1716301838728,-28.24114375,0.0003339,3]
[327670779,1716301839169,-423.07885625,0.0003339,3]
[327670781,1716301839180,-2294.21693167,0.00034999,14]
[327670783,1716301839192,-999.08460419,0.00034999,14]